bitfinex/quotes_SOLUSD_20251126
["timestamp","ask_amount","ask_price","bid_price","bid_amount"]
[1764181598470,7.63385106,144.22,144.21,0.29999999]
[1764181598681,7.63385106,144.22,144.2,3.49999999]
[1764181598878,0.7,144.21,144.2,3.49999999]
[1764181599373,0.7,144.21,144.2,0.29999999]
[1764181599573,12.30355134,144.21,144.2,0.29999999]
[1764181600325,11.60355134,144.22,144.21,0.29999999]
[1764181600596,7.63351058,144.23,144.21,0.29999999]
[1764181600796,7.63351058,144.23,144.22,3.2]
[1764181600984,18.53706192,144.23,144.22,3.2]
[1764181601174,19.23706192,144.23,144.22,3.2]
[1764181601590,12.30355134,144.23,144.22,3.2]
[1764181601794,12.30355134,144.23,144.22,3.49999999]
[1764181602172,19.23692165,144.23,144.22,8.32069944]
[1764181602369,19.23692165,144.23,144.22,4.82069945]
[1764181602685,19.23692165,144.23,144.14,23.24653413]
[1764181602686,7.63337031,144.23,144.21,8.32069944]
[1764181602886,7.63337031,144.23,144.22,4.82069945]
[1764181603106,18.53692165,144.23,144.22,4.82069945]
[1764181603397,18.53692165,144.23,144.21,4.82069945]
[1764181603597,6.93337031,144.23,144.22,4.82069945]
[1764181604103,7.60337031,144.23,144.22,4.82069945]
[1764181604295,7.60337031,144.23,144.21,0.29999999]
[1764181604489,0.67,144.22,144.21,0.29999999]
[1764181604691,12.27355134,144.22,144.21,0.29999999]
[1764181605199,11.60355134,144.22,144.21,0.29999999]
[1764181605399,12.27355134,144.22,144.21,0.29999999]
[1764181605606,11.60355134,144.22,144.21,5.12010872]
[1764181605786,11.60355134,144.22,144.21,0.29999999]
[1764181606185,11.60355134,144.22,144.21,5.11945086]
[1764181606789,11.60355134,144.23,144.21,5.11945086]
[1764181607097,19.20697258,144.23,144.22,5.11945086]
[1764181607297,18.53697258,144.23,144.22,5.11945086]
[1764181607598,18.53697258,144.23,144.22,4.81945087]
[1764181607782,18.53697258,144.23,144.22,0.29999999]
[1764181607983,19.20697258,144.23,144.22,5.11945086]
[1764181608693,19.20697258,144.23,144.22,3.23945087]
[1764181608885,36.54039835,144.23,144.19,0.29999999]
[1764181609086,11.60355134,144.2,144.19,0.29999999]
[1764181609905,11.60355134,144.2,144.17,3.2]
[1764181610097,11.60355134,144.21,144.2,0.29999999]
[1764181610499,11.60355134,144.21,144.2,3.49999999]
[1764181611907,19.11788321,144.21,144.2,3.2]
[1764181612107,19.11788321,144.21,144.14,16.308864]
[1764181612108,48.05726424,144.21,144.14,50.29999999]
[1764181612423,11.60355134,144.15,144.13,0.2]
[1764181612627,11.60355134,144.14,144.13,0.2]
[1764181612908,18.54125079,144.14,144.13,0.2]
[1764181613892,11.60355134,144.14,144.13,0.2]
[1764181614108,11.60355134,144.14,144.13,3.69999999]
[1764181614900,19.12125079,144.14,144.13,0.2]
[1764181615902,6.93769945,144.14,144.13,0.2]
[1764181616101,18.54125079,144.14,144.13,0.2]
[1764181616414,11.60355134,144.14,144.13,0.49999999]
[1764181617016,17.34130656,144.17,144.13,0.49999999]
[1764181617017,6.9362558,144.17,144.14,0.29999999]
[1764181617211,6.9362558,144.17,144.16,0.29999999]
[1764181617796,7.5162558,144.17,144.13,0.49999999]
[1764181618022,0.58,144.16,144.13,3.69999999]
[1764181618430,11.60355134,144.14,144.13,3.69999999]
[1764181618795,18.54125079,144.14,144.13,3.69999999]
[1764181620912,18.54125079,144.14,144.13,8.51687997]
[1764181621925,18.54125079,144.14,144.13,3.69999999]
[1764181622095,18.54125079,144.14,144.13,0.49999999]
[1764181622423,18.54125079,144.14,144.13,5.32050756]
[1764181622725,0.58,144.17,144.13,5.32050756]
[1764181622920,11.60355134,144.15,144.14,0.29999999]
[1764181623213,18.53692165,144.23,144.21,0.29999999]
[1764181623398,11.60355134,144.22,144.21,3.49999999]
[1764181624008,7.51227634,144.26,144.23,50.29999999]
[1764181624208,18.53582768,144.26,144.24,3.49999999]
[1764181624416,18.53582768,144.26,144.25,0.29999999]
[1764181625817,929.74717505,144.29,144.25,5.77539861]
[1764181625818,929.16717505,144.29,144.25,5.77539861]
[1764181626115,936.09766226,144.29,144.27,0.29999999]
[1764181626312,12.18355134,144.28,144.27,0.29999999]
[1764181626513,12.18355134,144.28,144.26,0.29999999]
[1764181626705,11.60355134,144.27,144.26,0.29999999]
[1764181626899,18.53499931,144.27,144.26,0.29999999]
[1764181627111,19.11499931,144.27,144.25,3.2]
[1764181627305,12.18355134,144.26,144.25,3.2]
[1764181627506,12.18355134,144.26,144.25,0.29999999]
[1764181628109,11.60355134,144.26,144.25,0.29999999]
[1764181628509,11.60355134,144.26,144.24,0.29999999]
[1764181628701,11.60355134,144.25,144.24,0.29999999]
[1764181628915,11.60355134,144.25,144.24,5.11182292]
[1764181628916,18.53596035,144.25,144.24,5.11182292]
[1764181630354,19.11596035,144.25,144.24,5.11392045]
[1764181630905,36.44698288,144.25,144.23,0.29999999]
[1764181631099,12.18355134,144.24,144.22,3.49999999]
[1764181631300,11.60355134,144.23,144.22,3.49999999]
[1764181631598,12.18355134,144.23,144.18,0.29999999]
[1764181631806,0.58,144.22,144.19,8.32355263]
[1764181632004,0.58,144.22,144.2,0.29999999]
[1764181632930,18.53788321,144.21,144.19,3.2]
[1764181633230,6.93433187,144.21,144.2,5.12788933]
[1764181633431,6.93433187,144.21,144.2,4.82788934]
[1764181633622,6.93433187,144.21,144.2,5.12788933]
[1764181634416,19.11788321,144.21,144.2,4.82788934]
[1764181635030,18.53788321,144.21,144.2,5.12788933]
[1764181635728,19.11788321,144.21,144.2,5.12788933]
[1764181636319,19.11788321,144.21,144.2,4.82788934]
[1764181637231,82.72892362,144.21,144.15,0.29999999]
[1764181637412,11.60355134,144.16,144.15,0.29999999]
[1764181637816,0.58,144.2,144.17,0.29999999]
[1764181638005,18.53932606,144.18,144.17,0.29999999]
[1764181639913,6.93577472,144.18,144.17,3.47999999]
[1764181640128,18.53932606,144.18,144.17,3.47999999]
[1764181640930,36.45876287,144.18,144.15,0.29999999]
[1764181641128,11.60355134,144.16,144.15,3.47999999]
[1764181641434,11.60355134,144.19,144.18,0.29999999]
[1764181641627,11.60355134,144.19,144.18,3.47999999]
[1764181641827,11.60355134,144.19,144.18,3.18]
[1764181642028,18.53884504,144.19,144.18,3.47999999]
[1764181642728,19.11884504,144.19,144.17,0.29999999]
[1764181643041,12.18355134,144.18,144.17,0.29999999]
[1764181643337,6.9352937,144.19,144.17,0.29999999]
[1764181643338,24.27352797,144.19,144.17,0.29999999]
[1764181643517,35.87707931,144.19,144.17,0.29999999]
[1764181643717,35.87707931,144.19,144.18,3.18]
[1764181644224,35.87707931,144.19,144.18,3.47999999]
[1764181644225,18.53884504,144.19,144.18,3.47999999]
[1764181644631,6.9352937,144.19,144.18,3.47999999]
[1764181645147,18.53884504,144.19,144.18,3.47999999]
[1764181646622,35.87707931,144.19,144.13,0.2]
[1764181646845,11.60355134,144.14,144.13,0.2]
[1764181647518,0.48,144.18,144.13,0.2]
[1764181647724,11.60355134,144.14,144.13,0.2]
[1764181648133,0.48,144.18,144.13,0.86]
[1764181648355,11.60355134,144.14,144.13,0.86]
[1764181648541,6.93686229,144.16,144.13,0.86]
[1764181648922,11.60355134,144.14,144.13,0.86]
[1764181649134,11.60355134,144.14,144.13,5.70794666]
[1764181649539,24.27870468,144.16,144.13,5.04794666]
[1764181649846,6.93686229,144.16,144.14,4.84794666]
[1764181650048,6.93686229,144.16,144.14,55.50794666]
[1764181650249,41.61176224,144.19,144.14,50.66]
[1764181650430,59.42999651,144.19,144.14,50.66]
[1764181650833,7.51324395,144.15,144.14,50.0]
[1764181651053,7.51324395,144.15,144.14,54.85134886]
[1764181651663,7.51324395,144.15,144.14,4.85134886]
[1764181652345,24.27689532,144.17,144.14,4.85134886]
[1764181652544,7.51324395,144.15,144.13,0.2]
[1764181652744,24.27689532,144.17,144.14,4.85313036]
[1764181652939,24.27689532,144.17,144.13,0.86]
[1764181653248,24.27689532,144.17,144.14,4.85611403]
[1764181653458,24.27689532,144.17,144.13,0.86]
[1764181653762,24.27689532,144.17,144.14,4.85626734]
[1764181653962,7.51324395,144.15,144.13,0.86]
[1764181654154,24.27689532,144.17,144.14,4.85647643]
[1764181654361,0.48,144.2,144.15,54.85322985]
[1764181654658,0.48,144.2,144.15,53.84]
[1764181655265,24.27016156,144.21,144.16,0.66]
[1764181655434,7.51324395,144.17,144.16,0.66]
[1764181655834,0.48,144.2,144.16,0.66]
[1764181656038,7.51324395,144.17,144.15,53.18]
[1764181656262,7.51324395,144.16,144.15,53.84]
[1764181656466,14.4499809,144.16,144.15,58.69309129]
[1764181658257,7.51324395,144.16,144.15,58.69309129]
[1764181658456,6.93639192,144.17,144.15,58.69309129]
[1764181658649,7.51324395,144.18,144.16,5.51309129]
[1764181658862,14.44906434,144.18,144.17,4.85309129]
[1764181659059,14.44906434,144.18,144.17,5.51309129]
[1764181659264,31.78850115,144.18,144.15,50.0]
[1764181659466,24.2752572,144.18,144.16,8.03062135]
[1764181659761,24.2752572,144.18,144.16,3.18]
[1764181660447,7.51324395,144.17,144.16,3.18]
[1764181660750,7.51324395,144.17,144.16,8.03205007]
[1764181661872,14.44949975,144.17,144.16,8.03205007]
[1764181662381,14.92949975,144.17,144.16,4.85205007]
[1764181662569,9.74157414,144.17,144.16,4.85205007]
[1764181664071,9.74157414,144.17,144.15,3.18]
[1764181664275,2.80531834,144.16,144.15,3.18]
[1764181664674,2.80531834,144.16,144.15,8.03644226]
[1764181664972,6.9362558,144.17,144.15,8.03644226]
[1764181665174,6.93608605,144.18,144.16,4.85668949]
[1764181665379,6.93608605,144.18,144.17,3.18]
[1764181666077,24.27419372,144.19,144.17,3.18]
[1764181666273,24.75419372,144.19,144.17,3.18]
[1764181666457,2.80531834,144.18,144.17,3.18]
[1764181667972,2.80531834,144.18,144.14,0.68]
[1764181667973,6.9362558,144.17,144.14,0.68]
[1764181668176,2.80531834,144.16,144.15,8.03729538]
[1764181668674,3.28531834,144.16,144.15,50.0]
[1764181668885,3.28531834,144.16,144.13,0.2]
[1764181669179,0.48,144.16,144.14,4.85889306]
[1764181669377,0.48,144.16,144.13,0.2]
[1764181669679,0.48,144.15,144.13,0.2]
[1764181669879,0.48,144.15,144.09,3.86]
[1764181670085,24.28194809,144.14,144.09,3.18]
[1764181670257,2.80531834,144.1,144.07,50.2]
[1764181670463,2.80531834,144.08,144.07,3.38]
[1764181670661,7.52402425,144.08,144.07,3.38]
[1764181672158,14.46461281,144.08,144.07,3.38]
[1764181673088,14.46461281,144.08,144.07,0.2]
[1764181673294,7.52402425,144.08,144.07,4.06]
[1764181673591,14.46461281,144.08,144.07,3.38]
[1764181674261,7.52402425,144.08,144.07,3.38]
[1764181674569,14.46461281,144.08,144.07,3.38]
[1764181676280,14.46461281,144.08,144.07,0.2]
[1764181676662,14.94461281,144.08,144.07,0.2]
[1764181677070,14.46461281,144.08,144.07,0.2]
[1764181677364,7.52402425,144.08,144.07,0.2]
[1764181677564,7.52402425,144.08,144.07,0.88]
[1764181677769,14.46461281,144.08,144.07,0.2]
[1764181679681,20.83984578,144.16,144.07,0.2]
[1764181679863,18.72,144.58,144.09,50.0]
[1764181679864,7.52402425,144.11,144.09,50.0]
[1764181680265,7.52402425,144.1,144.09,50.68]
[1764181680562,7.52402425,144.1,144.07,0.2]
[1764181680883,7.52402425,144.08,144.07,0.2]
[1764181681593,14.46461281,144.08,144.07,0.2]
[1764181681889,6.94020495,144.09,144.07,0.88]
[1764181682094,7.52402425,144.08,144.07,0.88]
[1764181682272,7.52402425,144.08,144.07,4.06]
[1764181682472,7.52402425,144.08,144.07,3.38]
[1764181683193,7.52402425,144.08,144.07,0.2]
[1764181683369,8.00402425,144.08,144.07,0.2]
[1764181683568,66.99902701,144.08,144.02,0.2]
[1764181683767,0.48,144.07,144.02,0.2]
[1764181684189,7.52402425,144.05,144.03,0.68]
[1764181684396,7.52402425,144.06,144.04,53.18]
[1764181685001,7.52402425,144.08,144.05,0.68]
[1764181685178,7.52402425,144.08,144.06,50.0]
[1764181685503,14.4642854,144.09,144.07,3.18]
[1764181685671,7.52402425,144.08,144.07,3.86]
[1764181686287,8.00402425,144.08,144.02,0.2]
[1764181686578,0.48,144.07,144.03,3.18]
[1764181686790,7.52402425,144.04,144.03,3.18]
[1764181687378,24.29052834,144.09,144.04,50.0]
[1764181687584,7.52402425,144.09,144.06,50.0]
[1764181687813,0.48,144.16,144.07,3.18]
[1764181687979,24.27689532,144.17,144.08,58.20402425]
[1764181688297,7.52402425,144.11,144.09,0.68]
[1764181688607,0.48,144.16,144.1,3.18]
[1764181689092,0.48,144.18,144.11,50.68]
[1764181689277,7.52402425,144.15,144.12,0.68]
[1764181689479,7.52402425,144.15,144.13,3.18]
[1764181689983,7.52402425,144.15,144.13,3.86]
[1764181690311,7.52402425,144.14,144.09,50.68]
[1764181690488,0.48,144.15,144.1,3.18]
[1764181690678,7.52402425,144.13,144.1,3.86]
[1764181691101,7.52402425,144.13,144.11,3.86]
[1764181691300,7.52402425,144.12,144.09,50.0]
[1764181691501,7.52402425,144.1,144.07,0.68]
[1764181691798,7.52402425,144.11,144.09,50.0]
[1764181692201,7.52402425,144.11,144.09,50.68]
[1764181692386,7.52402425,144.11,144.09,50.0]
[1764181692587,7.52402425,144.11,144.09,50.68]
[1764181693016,8.00402425,144.1,144.03,50.68]
[1764181693193,7.52402425,144.05,144.04,3.18]
[1764181693682,7.52402425,144.05,144.04,3.86]
[1764181694895,24.28531778,144.12,144.05,50.0]
[1764181695097,7.52402425,144.07,144.05,50.68]
[1764181695287,7.52402425,144.06,144.05,50.68]
[1764181695607,7.52402425,144.06,144.05,53.86]
[1764181697292,7.52402425,144.07,144.05,53.86]
[1764181697597,7.52402425,144.07,144.06,0.68]
[1764181699007,14.46509456,144.07,144.06,0.68]
[1764181699593,17.35035441,144.09,144.06,0.68]
[1764181699788,7.52402425,144.07,144.06,0.68]
[1764181701712,6.94058856,144.08,144.06,0.68]
[1764181701917,7.52402425,144.07,144.06,0.68]
[1764181702716,7.52402425,144.07,144.06,3.18]
[1764181703312,14.46509456,144.07,144.06,3.18]
[1764181704892,32.29777034,144.07,144.02,0.2]
[1764181705088,7.52402425,144.03,144.02,0.2]
[1764181705318,7.52402425,144.03,144.02,3.38]
[1764181705518,14.46702223,144.03,144.02,3.38]
[1764181706315,8.00402425,144.09,144.02,4.06]
[1764181706494,7.52402425,144.03,144.02,3.38]
[1764181707526,14.46702223,144.03,144.02,3.38]
[1764181708310,14.46702223,144.03,144.02,0.2]
[1764181708526,14.46702223,144.03,144.02,3.38]
[1764181708705,6.94299798,144.03,144.02,0.2]
[1764181708910,14.46702223,144.03,144.02,0.2]
[1764181710037,6.94299798,144.03,144.02,0.2]
[1764181710198,14.46702223,144.03,144.02,0.88]
[1764181710400,14.46702223,144.03,144.02,0.2]
[1764181711146,14.94702223,144.03,144.02,0.2]
[1764181712520,7.42299798,144.03,144.02,0.2]
[1764181712694,11.8155276,144.03,144.02,0.2]
[1764181715622,4.39252962,144.0,143.98,0.2]
[1764181715931,8.78505924,143.99,143.98,0.2]
[1764181716746,4.39252962,143.99,143.98,0.2]
[1764181716913,0.48,144.02,143.98,0.2]
[1764181717115,4.39252962,143.99,143.98,0.2]
[1764181717528,11.33745635,143.99,143.98,0.2]
[1764181717727,11.33745635,143.99,143.98,0.88]
[1764181717934,11.33745635,143.99,143.98,0.2]
[1764181718135,4.39252962,143.99,143.98,0.88]
[1764181718921,6.94461825,144.0,143.98,0.88]
[1764181719120,4.39252962,143.99,143.98,0.88]
[1764181719423,4.39252962,143.99,143.98,0.2]
[1764181719626,11.33745635,143.99,143.98,0.88]
[1764181719820,11.33745635,143.99,143.98,0.2]
[1764181720035,6.94492673,143.99,143.98,0.2]
[1764181720238,11.33745635,143.99,143.98,0.2]
[1764181720532,32.51884997,143.99,143.98,1e-08]
[1764181720724,49.88116679,143.99,143.93,50.0]
[1764181720928,4.39252962,143.94,143.93,53.18]
[1764181721632,11.33986878,143.94,143.93,53.18]
[1764181722421,28.7082167,143.94,143.9,50.0]
[1764181722627,11.6666081,143.91,143.9,50.0]
[1764181722952,6.94733916,143.94,143.9,53.18]
[1764181723117,11.6666081,143.92,143.9,53.18]
[1764181723319,11.6666081,143.92,143.91,0.68]
[1764181723619,18.61491271,143.92,143.91,0.68]
[1764181724254,19.09491271,143.92,143.88,0.2]
[1764181724450,19.09491271,143.92,143.84,3.18]
[1764181724451,11.6666081,143.89,143.84,3.18]
[1764181724636,11.6666081,143.85,143.84,3.18]
[1764181725156,11.6666081,143.85,143.84,3.85]
[1764181725835,18.61829388,143.85,143.84,3.85]
[1764181726453,11.6666081,143.85,143.84,3.85]
[1764181727850,18.61829388,143.85,143.84,3.85]
[1764181728032,18.61829388,143.85,143.83,0.1]
[1764181728238,11.6666081,143.84,143.83,0.1]
[1764181728434,11.6666081,143.84,143.83,3.28]
[1764181729959,17.37873604,143.86,143.83,3.28]
[1764181729960,6.95071939,143.87,143.83,3.95]
[1764181730259,11.6666081,143.84,143.83,3.28]
[1764181730432,11.6666081,143.84,143.83,0.1]
[1764181731758,11.6666081,143.84,143.83,3.28]
[1764181732351,18.61877717,143.84,143.83,3.28]
[1764181732550,18.61877717,143.84,143.83,0.1]
[1764181736663,11.6666081,143.84,143.83,0.77]
[1764181736962,18.61877717,143.84,143.83,0.77]
[1764181737264,18.61877717,143.84,143.83,3.28]
[1764181737469,18.61877717,143.84,143.83,3.95]
[1764181738644,6.95168601,143.85,143.83,3.95]
[1764181738864,11.6666081,143.84,143.83,3.28]
[1764181739486,11.6666081,143.84,143.83,3.95]
[1764181740967,28.4554721,143.9,143.84,50.0]
[1764181740968,11.6666081,143.9,143.84,50.0]
[1764181741162,11.6666081,143.88,143.86,50.0]
[1764181741358,0.48,143.93,143.87,3.18]
[1764181741671,0.48,143.93,143.87,3.85]
[1764181742175,24.31951327,143.92,143.88,50.0]
[1764181742370,11.6666081,143.89,143.88,50.0]
[1764181742560,4.39910921,143.89,143.88,50.67]
[1764181742960,4.39910921,143.91,143.9,50.0]
[1764181743175,0.48,144.0,143.92,50.0]
[1764181743356,4.39910921,143.95,143.94,50.0]
[1764181743867,4.39910921,143.95,143.94,50.67]
[1764181744165,11.34596575,143.95,143.94,50.67]
[1764181744673,18.60654359,143.95,143.94,50.67]
[1764181745180,12.13968705,144.0,143.94,50.67]
[1764181745478,6.94492673,143.99,143.97,50.0]
[1764181745668,6.94492673,143.99,143.98,3.18]
[1764181746478,17.36061991,144.01,143.98,3.18]
[1764181746683,11.65968705,143.99,143.98,3.18]
[1764181748484,18.60461378,143.99,143.98,3.18]
[1764181749762,18.60461378,143.99,143.98,3.87]
[1764181750257,0.2,144.03,143.98,83.32030035]
[1764181750458,0.72,144.11,144.08,50.0]
[1764181750669,0.72,144.11,144.09,3.18]
[1764181751364,0.72,144.13,144.09,3.18]
[1764181751568,16.308864,144.07,143.98,50.0]
[1764181751876,11.65968705,143.99,143.98,50.0]
[1764181752578,6.94540908,143.98,143.97,3.18]
[1764181752776,18.60509613,143.98,143.97,53.18]
[1764181752972,18.60509613,143.98,143.94,3.18]
[1764181752973,19.32509613,143.98,143.94,3.18]
[1764181753174,11.65968705,143.95,143.94,3.18]
[1764181753483,11.65968705,143.95,143.92,3.18]
[1764181753688,11.65968705,143.93,143.88,50.0]
[1764181753869,0.72,143.94,143.89,3.18]
[1764181754073,11.65968705,143.9,143.89,3.18]
[1764181754587,18.60895737,143.9,143.89,3.18]
[1764181755766,48.33182023,143.9,143.86,50.0]
[1764181755970,11.65968705,143.87,143.86,53.18]
[1764181756688,18.61040644,143.87,143.86,53.18]
[1764181757079,11.65968705,143.87,143.86,53.18]
[1764181759187,18.61040644,143.87,143.86,53.18]
[1764181759399,19.30040644,143.87,143.86,53.18]
[1764181759576,19.30040644,143.87,143.86,3.18]
[1764181759778,36.67720493,143.87,143.84,53.18]
[1764181759985,11.65968705,143.85,143.84,53.18]
[1764181761288,18.61137283,143.85,143.84,53.18]
[1764181762789,6.95081016,143.87,143.84,53.18]
[1764181762990,24.32413648,143.89,143.86,50.0]
[1764181763190,25.01413648,143.89,143.86,50.0]
[1764181763392,25.01413648,143.89,143.84,3.18]
[1764181764074,11.65968705,143.85,143.84,3.18]
[1764181764283,0.69,143.88,143.86,50.0]
[1764181764491,11.65968705,143.87,143.86,50.0]
[1764181764791,11.65968705,143.87,143.86,49.28]
[1764181764997,12.34968705,143.87,143.85,50.0]
[1764181765193,24.32413648,143.89,143.85,50.0]
[1764181765194,19.3008896,143.86,143.85,50.0]
[1764181765774,18.6108896,143.86,143.85,50.0]
[1764181766969,19.3008896,143.86,143.85,50.0]
[1764181767174,18.6108896,143.86,143.85,50.0]
[1764181767396,19.3008896,143.86,143.85,50.0]
[1764181768493,18.6108896,143.86,143.85,50.0]
[1764181768690,6.95120255,143.86,143.85,50.0]
[1764181768894,18.6108896,143.86,143.85,50.0]
[1764181769781,18.6108896,143.86,143.84,3.18]
[1764181769991,11.65968705,143.85,143.84,3.18]
[1764181770906,18.61137283,143.85,143.84,3.18]
[1764181772595,14.49808397,143.85,143.84,3.18]
[1764181772983,6.95168578,143.85,143.84,3.18]
[1764181773201,14.49808397,143.85,143.84,3.18]
[1764181775306,7.54639819,143.85,143.84,3.18]
[1764181775503,14.49808397,143.85,143.84,3.18]
[1764181777209,14.49808397,143.85,143.84,28.18]
[1764181778609,7.54639819,143.85,143.84,28.18]
[1764181778999,17.37454471,143.89,143.85,50.0]
[1764181779194,7.54639819,143.86,143.85,50.66]
[1764181779409,7.54639819,143.86,143.85,50.0]
[1764181779784,14.49760074,143.86,143.85,50.0]
[1764181780186,6.95090367,143.87,143.85,50.0]
[1764181780386,7.54639819,143.86,143.85,50.66]
[1764181781108,7.54639819,143.86,143.85,50.0]
[1764181781803,14.49760074,143.86,143.85,50.0]
[1764181784721,7.54639819,143.86,143.85,50.0]
[1764181784899,24.32691392,143.88,143.87,50.0]
[1764181785099,31.87331211,143.88,143.87,50.0]
[1764181785301,32.56331211,143.88,143.85,50.0]
[1764181785502,6.94933083,143.9,143.87,50.0]
[1764181785797,6.94933083,143.9,143.89,50.0]
[1764181785991,6.94933083,143.9,143.89,53.16]
[1764181786618,14.49572902,143.9,143.89,53.16]
[1764181788312,0.69,143.98,143.94,50.0]
[1764181788618,0.69,143.98,143.95,3.16]
[1764181788915,24.31062026,143.97,143.94,50.0]
[1764181789302,0.69,143.96,143.94,50.0]
[1764181789721,2.81281828,143.95,143.94,50.0]
[1764181790820,0.69,143.98,143.96,50.0]
[1764181791016,2.81281828,143.97,143.96,50.0]
[1764181791213,2.81281828,143.97,143.96,53.16]
[1764181791903,6.94540908,143.98,143.96,53.16]
[1764181792111,2.81281828,143.97,143.96,53.16]
[1764181792825,9.75870978,143.97,143.96,53.16]
[1764181794316,2.81281828,143.97,143.96,53.16]
[1764181794518,6.94560487,143.98,143.96,53.16]
[1764181794700,18.05296644,144.15,143.97,101.96257248]
[1764181794907,0.69,144.19,144.18,53.42349383]
[1764181795127,3.50281828,144.19,144.18,53.42349383]
[1764181795620,24.27095141,144.21,144.18,58.25151384]
[1764181795817,6.93433187,144.21,144.2,50.0]
[1764181796129,7.03394046,144.22,144.2,57.98802001]
[1764181796321,17.33355537,144.23,144.21,4.82802001]
[1764181796524,17.33355537,144.23,144.22,4.82802001]
[1764181797215,17.33355537,144.23,144.22,54.82802001]
[1764181797415,24.84283242,144.23,144.22,54.82802001]
[1764181797618,32.46620273,144.23,144.22,54.82802001]
[1764181797937,916.65431249,144.29,144.26,50.0]
[1764181798236,932.96317649,144.29,144.27,4.82802001]
[1764181798398,932.96317649,144.29,144.28,4.82802001]
[1764181798698,916.65431249,144.29,144.28,54.82802001]
[1764181799128,924.16358954,144.29,144.28,54.82802001]
[1764181799299,931.09407675,144.29,144.28,54.82802001]
[1764181799503,923.5847997,144.29,144.28,54.82802001]
[1764181799704,931.09407675,144.29,144.28,54.82802001]
[1764181800622,931.78407675,144.29,144.28,4.82802001]
[1764181800808,931.09407675,144.29,144.28,54.82802001]
[1764181801008,923.5847997,144.29,144.28,57.98802001]
[1764181801215,924.16358954,144.29,144.28,58.70802001]
[1764181801616,924.16358954,144.29,144.28,57.98802001]
[1764181801816,924.16358954,144.29,144.28,58.70802001]
[1764181802026,931.09407675,144.29,144.28,57.98802001]
[1764181802323,931.09407675,144.29,144.28,54.82802001]
[1764181802507,916.65431249,144.29,144.28,58.70802001]
[1764181802705,916.65431249,144.29,144.28,66.21729706]
[1764181802908,916.65431249,144.29,144.28,73.14826462]
[1764181803726,909.71925835,144.29,144.28,73.43258776]
[1764181803911,909.71925835,144.29,144.28,82.24253268]
[1764181804402,909.71925835,144.29,144.28,79.08253268]
[1764181804604,909.71925835,144.29,144.28,57.98802001]
[1764181804823,909.71925835,144.29,144.28,58.70802001]
[1764181805048,917.2285354,144.29,144.28,57.98802001]
[1764181805221,924.15902261,144.29,144.28,54.82802001]
[1764181805416,924.84902261,144.29,144.28,57.98802001]
[1764181805718,916.64974556,144.29,144.28,57.98802001]
[1764181806027,924.15902261,144.29,144.28,57.98802001]
[1764181806207,916.64974556,144.29,144.28,57.98802001]
[1764181806410,924.15902261,144.29,144.28,57.98802001]
[1764181806924,909.71925835,144.29,144.28,57.98802001]
[1764181807125,924.15902261,144.29,144.28,57.98802001]
[1764181807628,924.87902261,144.29,144.28,54.82802001]
[1764181807816,924.87902261,144.29,144.28,57.98802001]
[1764181808330,924.87902261,144.29,144.28,53.16]
[1764181809239,909.71925835,144.29,144.28,66.07682294]
[1764181809447,909.71925835,144.29,144.28,68.58456775]
[1764181809616,908.33925835,144.29,144.28,65.77381349]
[1764181809828,908.33925835,144.29,144.28,57.85852279]
[1764181810134,908.33925835,144.29,144.28,72.2987674]
[1764181810640,907.99690897,144.29,144.28,72.2987674]
[1764181810842,907.63450897,144.29,144.28,72.2987674]
[1764181811142,907.63450897,144.29,144.28,65.36779984]
[1764181811324,907.63450897,144.29,144.28,72.2987674]
[1764181812144,907.63450897,144.29,144.28,57.85852279]
[1764181812314,915.14378602,144.29,144.28,53.16]
[1764181812717,922.79427323,144.29,144.28,50.0]
[1764181812930,922.79427323,144.29,144.28,53.16]
[1764181813125,915.86378602,144.29,144.28,53.16]
[1764181813413,922.79427323,144.29,144.28,53.16]
[1764181814536,940.12049126,144.29,144.26,53.16]
[1764181814717,15.0185541,144.27,144.15,6.93721817]